[Event "Titled Tuesday Blitz May 10 Early 2022"]
[White "De Silva, L M S T"]
[Black "Jumabayev, Rinat"]
[WhiteFideId "9953698"]
[BlackFideId "13702661"]
[WhiteElo "1631"]
[BlackElo "2561"]
[Result "0-1"]
[Round "10"]
[TimeControl "180+1"]
[Date "2022.05.10"]
[WhiteClock "0:00:02"]
[BlackClock "0:00:07"]

1. e4 {[%clk 0:03:00]}  c5 {[%clk 0:02:58]} 2. Nf3 {[%clk 0:03:01]}  d6 {[%clk 0:02:59]} 3. Bb5+ {[%clk 0:03:01]}  Bd7 {[%clk 0:02:58]} 4. Bxd7+ {[%clk 0:03:01]}  Nxd7 {[%clk 0:02:59]} 5. O-O {[%clk 0:03:00]}  Ngf6 {[%clk 0:02:59]} 6. Qe2 {[%clk 0:03:01]}  e6 {[%clk 0:03:00]} 7. c3 {[%clk 0:03:02]}  Be7 {[%clk 0:03:00]} 8. d4 {[%clk 0:03:03]}  O-O {[%clk 0:03:01]} 9. Rd1 {[%clk 0:03:01]}  Rc8 {[%clk 0:03:00]} 10. e5 {[%clk 0:02:59]}  Ne8 {[%clk 0:03:00]} 11. Nbd2 {[%clk 0:02:57]}  cxd4 {[%clk 0:02:58]} 12. cxd4 {[%clk 0:02:58]}  Nc7 {[%clk 0:02:58]} 13. Ne4 {[%clk 0:02:55]}  dxe5 {[%clk 0:02:47]} 14. dxe5 {[%clk 0:02:56]}  Nd5 {[%clk 0:02:48]} 15. Bg5 {[%clk 0:02:51]}  Nc5 {[%clk 0:02:35]} 16. Nd6 {[%clk 0:02:38]}  Rc6 {[%clk 0:02:30]} 17. Bxe7 {[%clk 0:02:15]}  Qxe7 {[%clk 0:02:31]} 18. Rac1 {[%clk 0:02:15]}  a6 {[%clk 0:02:18]} 19. Nd4 {[%clk 0:01:59]}  Rc7 {[%clk 0:02:14]} 20. N4f5 {[%clk 0:01:22]}  Qg5 {[%clk 0:01:50]} 21. h4 {[%clk 0:01:22]}  Qd8 {[%clk 0:01:45]} 22. Ne3 {[%clk 0:01:18]}  Nxe3 {[%clk 0:01:27]} 23. Qxe3 {[%clk 0:01:19]}  Nd7 {[%clk 0:01:28]} 24. h5 {[%clk 0:01:04]}  h6 {[%clk 0:01:28]} 25. g3 {[%clk 0:01:02]}  Rxc1 {[%clk 0:01:21]} 26. Rxc1 {[%clk 0:01:03]}  Qg5 {[%clk 0:01:21]} 27. Qxg5 {[%clk 0:01:01]}  hxg5 {[%clk 0:01:22]} 28. f4 {[%clk 0:01:00]}  gxf4 {[%clk 0:01:18]} 29. gxf4 {[%clk 0:01:01]}  b5 {[%clk 0:01:05]} 30. Rc7 {[%clk 0:00:59]}  Nb6 {[%clk 0:01:04]} 31. Ra7 {[%clk 0:00:43]}  Nd5 {[%clk 0:00:58]} 32. Rxa6 {[%clk 0:00:38]}  Nxf4 {[%clk 0:00:58]} 33. Nxb5 {[%clk 0:00:38]}  Rc8 {[%clk 0:00:58]} 34. Nc3 {[%clk 0:00:35]}  Nd3 {[%clk 0:00:55]} 35. Ne4 {[%clk 0:00:25]}  Nxb2 {[%clk 0:00:40]} 36. Nd6 {[%clk 0:00:24]}  Rf8 {[%clk 0:00:33]} 37. Ra3 {[%clk 0:00:17]}  Rb8 {[%clk 0:00:23]} 38. Kf1 {[%clk 0:00:17]}  Rb4 {[%clk 0:00:22]} 39. Ra8+ {[%clk 0:00:15]}  Kh7 {[%clk 0:00:22]} 40. Nxf7 {[%clk 0:00:16]}  Rf4+ {[%clk 0:00:22]} 41. Ke2 {[%clk 0:00:15]}  Rxf7 {[%clk 0:00:22]} 42. Ra6 {[%clk 0:00:10]}  Re7 {[%clk 0:00:15]} 43. Rc6 {[%clk 0:00:09]}  Ra7 {[%clk 0:00:15]} 44. Rxe6 {[%clk 0:00:08]}  Rxa2 {[%clk 0:00:15]} 45. Kf3 {[%clk 0:00:08]}  Nd3 {[%clk 0:00:14]} 46. Re8 {[%clk 0:00:06]}  Ra4 {[%clk 0:00:09]} 47. e6 {[%clk 0:00:04]}  Ne5+ {[%clk 0:00:09]} 48. Kg3 {[%clk 0:00:02]}  Re4 {[%clk 0:00:07]} 49. Re7 {[%clk 0:00:01]}  Ng4 {[%clk 0:00:07]} 50. Re8 {[%clk 0:00:01]}  Nf6 {[%clk 0:00:08]} 51. Re7 {[%clk 0:00:02]}  Kh6 {[%clk 0:00:08]} 52. Re8 {[%clk 0:00:02]}  Nxe8 {[%clk 0:00:07]} 0-1


[Site "https://www.chess.com"]

[Event "Titled Tuesday Blitz May 10 Early 2022"]
[White "Dmitrenko, Viktor"]
[Black "Kohler, Aran"]
[WhiteFideId "14110270"]
[BlackFideId "1002856"]
[WhiteElo "2218"]
[BlackElo "2296"]
[Result "0-1"]
[Round "10"]
[TimeControl "180+1"]
[Date "2022.05.11"]
[WhiteClock "0:00:01"]
[BlackClock "0:00:17"]

1. d4 {[%clk 0:03:00]}  Nf6 {[%clk 0:02:53]} 2. Bg5 {[%clk 0:02:54]}  d5 {[%clk 0:02:47]} 3. Nc3 {[%clk 0:02:49]}  Nbd7 {[%clk 0:02:41]} 4. Nf3 {[%clk 0:02:42]}  c6 {[%clk 0:02:37]} 5. e3 {[%clk 0:02:34]}  h6 {[%clk 0:02:37]} 6. Bf4 {[%clk 0:02:26]}  Qb6 {[%clk 0:02:36]} 7. a3 {[%clk 0:02:16]}  e6 {[%clk 0:02:21]} 8. Bd3 {[%clk 0:01:57]}  Be7 {[%clk 0:02:12]} 9. O-O {[%clk 0:01:54]}  O-O {[%clk 0:02:12]} 10. h3 {[%clk 0:01:54]}  c5 {[%clk 0:01:53]} 11. b3 {[%clk 0:01:47]}  Qd8 {[%clk 0:01:49]} 12. Nb5 {[%clk 0:01:39]}  Ne8 {[%clk 0:01:48]} 13. c4 {[%clk 0:01:36]}  a6 {[%clk 0:01:47]} 14. Nc3 {[%clk 0:01:35]}  cxd4 {[%clk 0:01:48]} 15. exd4 {[%clk 0:01:33]}  dxc4 {[%clk 0:01:48]} 16. bxc4 {[%clk 0:01:33]}  Bd6 {[%clk 0:01:41]} 17. Be3 {[%clk 0:01:23]}  b6 {[%clk 0:01:34]} 18. Qd2 {[%clk 0:01:15]}  Bb7 {[%clk 0:01:23]} 19. Ne4 {[%clk 0:01:08]}  Bxe4 {[%clk 0:01:11]} 20. Bxe4 {[%clk 0:01:05]}  Nef6 {[%clk 0:01:07]} 21. Bxa8 {[%clk 0:01:02]}  Qxa8 {[%clk 0:01:06]} 22. Rfc1 {[%clk 0:00:55]}  Rc8 {[%clk 0:01:04]} 23. a4 {[%clk 0:00:54]}  Ne4 {[%clk 0:00:59]} 24. Qd3 {[%clk 0:00:52]}  f5 {[%clk 0:00:56]} 25. a5 {[%clk 0:00:51]}  bxa5 {[%clk 0:00:42]} 26. Rxa5 {[%clk 0:00:49]}  Bb4 {[%clk 0:00:42]} 27. Raa1 {[%clk 0:00:43]}  a5 {[%clk 0:00:42]} 28. c5 {[%clk 0:00:43]}  Qd5 {[%clk 0:00:41]} 29. Qb5 {[%clk 0:00:34]}  Rb8 {[%clk 0:00:38]} 30. Qa4 {[%clk 0:00:32]}  Rc8 {[%clk 0:00:30]} 31. Bf4 {[%clk 0:00:29]}  e5 {[%clk 0:00:27]} 32. Nxe5 {[%clk 0:00:26]}  Nxe5 {[%clk 0:00:25]} 33. Bxe5 {[%clk 0:00:25]}  Rc6 {[%clk 0:00:20]} 34. Qb5 {[%clk 0:00:21]}  Rg6 {[%clk 0:00:19]} 35. Qe8+ {[%clk 0:00:15]}  Kh7 {[%clk 0:00:19]} 36. Rc2 {[%clk 0:00:11]}  Nd2 {[%clk 0:00:17]} 37. Qxg6+ {[%clk 0:00:08]}  Kxg6 {[%clk 0:00:16]} 38. Rd1 {[%clk 0:00:05]}  Ne4 {[%clk 0:00:16]} 39. Rcc1 {[%clk 0:00:03]}  Nc3 {[%clk 0:00:16]} 40. Re1 {[%clk 0:00:02]}  Qc6 {[%clk 0:00:16]} 41. Kh1 {[%clk 0:00:02]}  Nd5 {[%clk 0:00:16]} 42. f3 {[%clk 0:00:03]}  a4 {[%clk 0:00:16]} 43. Re2 {[%clk 0:00:02]}  Kf7 {[%clk 0:00:17]} 44. Rec2 {[%clk 0:00:02]}  a3 {[%clk 0:00:17]} 45. Ra2 {[%clk 0:00:02]}  Nc3 {[%clk 0:00:17]} 46. Rxc3 {[%clk 0:00:01]}  Bxc3 {[%clk 0:00:17]} 47. Rxa3 {[%clk 0:00:02]}  Bb4 {[%clk 0:00:17]} 48. Ra7+ {[%clk 0:00:02]}  Kg6 {[%clk 0:00:16]} 49. Rc7 {[%clk 0:00:02]}  Qb5 {[%clk 0:00:16]} 50. Rxg7+ {[%clk 0:00:02]}  Kh5 {[%clk 0:00:16]} 51. g4+ {[%clk 0:00:03]}  Kh4 {[%clk 0:00:16]} 52. Kg2 {[%clk 0:00:02]}  Qe2+ {[%clk 0:00:16]} 53. Kh1 {[%clk 0:00:02]}  Qf1+ {[%clk 0:00:15]} 54. Kh2 {[%clk 0:00:02]}  Qf2+ {[%clk 0:00:16]} 55. Kh1 {[%clk 0:00:02]}  Kxh3 {[%clk 0:00:16]} 56. gxf5 {[%clk 0:00:01]}  Qxf3+ {[%clk 0:00:17]} 0-1


[Site "https://www.chess.com"]

[Event "Titled Tuesday Blitz May 10 Early 2022"]
[White "Wagner, Dinara"]
[Black "Jarovinsky, Alexey"]
[WhiteFideId "24157570"]
[BlackFideId "14115131"]
[WhiteElo "2216"]
[BlackElo "2446"]
[Result "1-0"]
[Round "10"]
[TimeControl "180+1"]
[Date "2022.05.11"]
[WhiteClock "0:00:08"]
[BlackClock "0:00:04"]

1. d4 {[%clk 0:02:59]}  Nc6 {[%clk 0:03:00]} 2. Nf3 {[%clk 0:02:57]}  d6 {[%clk 0:02:59]} 3. c4 {[%clk 0:02:57]}  Nf6 {[%clk 0:02:58]} 4. g3 {[%clk 0:02:56]}  e5 {[%clk 0:02:51]} 5. d5 {[%clk 0:02:56]}  Nb8 {[%clk 0:02:50]} 6. Bg2 {[%clk 0:02:56]}  Be7 {[%clk 0:02:47]} 7. Nc3 {[%clk 0:02:56]}  O-O {[%clk 0:02:47]} 8. e4 {[%clk 0:02:57]}  Ne8 {[%clk 0:02:28]} 9. O-O {[%clk 0:02:53]}  f5 {[%clk 0:02:19]} 10. exf5 {[%clk 0:02:52]}  Bxf5 {[%clk 0:02:20]} 11. Be3 {[%clk 0:02:51]}  Bg4 {[%clk 0:02:09]} 12. h3 {[%clk 0:02:51]}  Bh5 {[%clk 0:02:09]} 13. g4 {[%clk 0:02:42]}  Bg6 {[%clk 0:02:07]} 14. Nd2 {[%clk 0:02:42]}  Bg5 {[%clk 0:02:02]} 15. Nde4 {[%clk 0:02:40]}  Bxe3 {[%clk 0:02:01]} 16. fxe3 {[%clk 0:02:39]}  Rxf1+ {[%clk 0:01:58]} 17. Qxf1 {[%clk 0:02:38]}  Nd7 {[%clk 0:01:56]} 18. Qf2 {[%clk 0:02:36]}  h6 {[%clk 0:01:49]} 19. Rf1 {[%clk 0:02:36]}  Nef6 {[%clk 0:01:48]} 20. Ng3 {[%clk 0:02:26]}  Nc5 {[%clk 0:01:44]} 21. Nf5 {[%clk 0:02:26]}  Bxf5 {[%clk 0:01:37]} 22. Qxf5 {[%clk 0:02:24]}  Qd7 {[%clk 0:01:35]} 23. Qg6 {[%clk 0:02:23]}  Qf7 {[%clk 0:01:28]} 24. Qc2 {[%clk 0:02:10]}  Rf8 {[%clk 0:01:18]} 25. b4 {[%clk 0:01:54]}  Ncd7 {[%clk 0:01:17]} 26. Ne4 {[%clk 0:01:53]}  Qe7 {[%clk 0:01:13]} 27. Ng3 {[%clk 0:01:53]}  Nh7 {[%clk 0:00:54]} 28. Nf5 {[%clk 0:01:42]}  Qg5 {[%clk 0:00:51]} 29. Qe2 {[%clk 0:01:40]}  e4 {[%clk 0:00:38]} 30. Bxe4 {[%clk 0:00:55]}  Ne5 {[%clk 0:00:37]} 31. Qf2 {[%clk 0:00:51]}  Qd8 {[%clk 0:00:33]} 32. Qe2 {[%clk 0:00:48]}  Ng5 {[%clk 0:00:21]} 33. Bg2 {[%clk 0:00:48]}  g6 {[%clk 0:00:18]} 34. Nd4 {[%clk 0:00:41]}  Rxf1+ {[%clk 0:00:15]} 35. Qxf1 {[%clk 0:00:41]}  Qe7 {[%clk 0:00:14]} 36. h4 {[%clk 0:00:28]}  Nh7 {[%clk 0:00:14]} 37. h5 {[%clk 0:00:27]}  gxh5 {[%clk 0:00:14]} 38. gxh5 {[%clk 0:00:25]}  Qg5 {[%clk 0:00:13]} 39. Qf4 {[%clk 0:00:17]}  Qxh5 {[%clk 0:00:11]} 40. Ne6 {[%clk 0:00:14]}  Qd1+ {[%clk 0:00:10]} 41. Kh2 {[%clk 0:00:15]}  Qg4 {[%clk 0:00:09]} 42. Qxh6 {[%clk 0:00:06]}  Qg6 {[%clk 0:00:04]} 43. Qxg6+ {[%clk 0:00:05]}  Nxg6 {[%clk 0:00:05]} 44. Nxc7 {[%clk 0:00:06]}  a6 {[%clk 0:00:04]} 45. c5 {[%clk 0:00:06]}  dxc5 {[%clk 0:00:03]} 46. bxc5 {[%clk 0:00:07]}  Nf6 {[%clk 0:00:03]} 47. d6 {[%clk 0:00:07]}  b5 {[%clk 0:00:02]} 48. cxb6 {[%clk 0:00:07]}  Nd7 {[%clk 0:00:02]} 49. b7 {[%clk 0:00:07]}  Nb8 {[%clk 0:00:03]} 50. Bh3 {[%clk 0:00:06]}  Ne5 {[%clk 0:00:03]} 51. d7 {[%clk 0:00:07]}  Nexd7 {[%clk 0:00:03]} 52. Bxd7 {[%clk 0:00:08]}  Nxd7 {[%clk 0:00:04]} 53. Nxa6 {[%clk 0:00:08]} 1-0


[Site "https://www.chess.com"]

[Event "Titled Tuesday Blitz May 10 Early 2022"]
[White "Gatterer, Florian"]
[Black "Danaci, Ege"]
[WhiteFideId "811688"]
[BlackFideId "34506748"]
[WhiteElo "2218"]
[BlackElo "1799"]
[Result "0-1"]
[Round "10"]
[TimeControl "180+1"]
[Date "2022.05.11"]
[WhiteClock "0:00:06"]
[BlackClock "0:00:06"]

1. e4 {[%clk 0:03:00]}  c5 {[%clk 0:02:52]} 2. Nf3 {[%clk 0:03:00]}  e6 {[%clk 0:02:51]} 3. d4 {[%clk 0:02:59]}  cxd4 {[%clk 0:02:51]} 4. Nxd4 {[%clk 0:03:00]}  a6 {[%clk 0:02:52]} 5. c4 {[%clk 0:02:58]}  Qc7 {[%clk 0:02:52]} 6. Nc3 {[%clk 0:02:57]}  Nf6 {[%clk 0:02:53]} 7. Bd3 {[%clk 0:02:49]}  Bb4 {[%clk 0:02:51]} 8. O-O {[%clk 0:02:48]}  Bxc3 {[%clk 0:02:48]} 9. bxc3 {[%clk 0:02:47]}  O-O {[%clk 0:02:49]} 10. a4 {[%clk 0:02:44]}  b6 {[%clk 0:02:41]} 11. a5 {[%clk 0:02:44]}  bxa5 {[%clk 0:02:08]} 12. Qe2 {[%clk 0:02:35]}  e5 {[%clk 0:01:54]} 13. Nf5 {[%clk 0:02:27]}  d6 {[%clk 0:01:50]} 14. Qf3 {[%clk 0:02:09]}  Bxf5 {[%clk 0:01:37]} 15. Qxf5 {[%clk 0:02:05]}  Nbd7 {[%clk 0:01:34]} 16. Bg5 {[%clk 0:01:55]}  h6 {[%clk 0:01:32]} 17. Bh4 {[%clk 0:01:52]}  g6 {[%clk 0:01:26]} 18. Qh3 {[%clk 0:01:45]}  Kg7 {[%clk 0:01:22]} 19. Kh1 {[%clk 0:01:45]}  Nh5 {[%clk 0:01:06]} 20. Bg3 {[%clk 0:01:35]}  Nxg3+ {[%clk 0:01:04]} 21. hxg3 {[%clk 0:01:30]}  Nc5 {[%clk 0:01:02]} 22. Bc2 {[%clk 0:01:30]}  Rab8 {[%clk 0:01:00]} 23. f4 {[%clk 0:01:29]}  Rb2 {[%clk 0:00:58]} 24. Rac1 {[%clk 0:01:25]}  f6 {[%clk 0:00:43]} 25. Rfd1 {[%clk 0:01:13]}  h5 {[%clk 0:00:26]} 26. Kg1 {[%clk 0:01:05]}  Rxc2 {[%clk 0:00:24]} 27. Rxc2 {[%clk 0:01:04]}  Nxe4 {[%clk 0:00:25]} 28. Qe6 {[%clk 0:00:35]}  Qc5+ {[%clk 0:00:19]} 29. Kh2 {[%clk 0:00:34]}  Qe3 {[%clk 0:00:15]} 30. Qh3 {[%clk 0:00:24]}  Nf2 {[%clk 0:00:15]} 31. Rxf2 {[%clk 0:00:22]}  Qxf2 {[%clk 0:00:15]} 32. Rxd6 {[%clk 0:00:22]}  exf4 {[%clk 0:00:14]} 33. Rd7+ {[%clk 0:00:22]}  Kh6 {[%clk 0:00:13]} 34. gxf4 {[%clk 0:00:22]}  Qxf4+ {[%clk 0:00:13]} 35. Qg3 {[%clk 0:00:22]}  Qxg3+ {[%clk 0:00:13]} 36. Kxg3 {[%clk 0:00:22]}  Rc8 {[%clk 0:00:14]} 37. Ra7 {[%clk 0:00:21]}  Rxc4 {[%clk 0:00:14]} 38. Rxa6 {[%clk 0:00:21]}  Rxc3+ {[%clk 0:00:12]} 39. Kh2 {[%clk 0:00:21]}  Ra3 {[%clk 0:00:11]} 40. Rxf6 {[%clk 0:00:20]}  Kg5 {[%clk 0:00:12]} 41. Ra6 {[%clk 0:00:18]}  h4 {[%clk 0:00:12]} 42. Ra8 {[%clk 0:00:16]}  Kg4 {[%clk 0:00:12]} 43. Ra6 {[%clk 0:00:15]}  g5 {[%clk 0:00:12]} 44. Ra7 {[%clk 0:00:15]}  Ra2 {[%clk 0:00:12]} 45. Rh7 {[%clk 0:00:09]}  a4 {[%clk 0:00:10]} 46. Rh8 {[%clk 0:00:10]}  Rc2 {[%clk 0:00:07]} 47. Ra8 {[%clk 0:00:05]}  Rc4 {[%clk 0:00:06]} 48. Ra5 {[%clk 0:00:02]}  Kf4 {[%clk 0:00:06]} 49. Kh3 {[%clk 0:00:02]}  Rc3+ {[%clk 0:00:03]} 50. Kh2 {[%clk 0:00:02]}  Ra3 {[%clk 0:00:04]} 51. Ra6 {[%clk 0:00:03]}  g4 {[%clk 0:00:04]} 52. Rf6+ {[%clk 0:00:02]}  Kg5 {[%clk 0:00:04]} 53. Rb6 {[%clk 0:00:03]}  g3+ {[%clk 0:00:02]} 54. Kh3 {[%clk 0:00:03]}  Ra1 {[%clk 0:00:03]} 55. Rb5+ {[%clk 0:00:04]}  Kf4 {[%clk 0:00:03]} 56. Rb4+ {[%clk 0:00:04]}  Ke3 {[%clk 0:00:03]} 57. Kxh4 {[%clk 0:00:05]}  Kf2 {[%clk 0:00:02]} 58. Kh3 {[%clk 0:00:03]}  Rh1+ {[%clk 0:00:01]} 59. Kg4 {[%clk 0:00:04]}  Kxg2 {[%clk 0:00:01]} 60. Rxa4 {[%clk 0:00:04]}  Kh2 {[%clk 0:00:02]} 61. Ra2+ {[%clk 0:00:04]}  g2 {[%clk 0:00:02]} 62. Kf3 {[%clk 0:00:03]}  Rf1+ {[%clk 0:00:02]} 63. Kg4 {[%clk 0:00:04]}  Rf8 {[%clk 0:00:03]} 64. Rxg2+ {[%clk 0:00:02]}  Kxg2 {[%clk 0:00:03]} 65. Kg5 {[%clk 0:00:03]}  Re8 {[%clk 0:00:03]} 66. Kh6 {[%clk 0:00:04]}  Rg8 {[%clk 0:00:03]} 67. Kh7 {[%clk 0:00:04]}  Rg3 {[%clk 0:00:04]} 68. Kh6 {[%clk 0:00:04]}  Kf3 {[%clk 0:00:05]} 69. Kh7 {[%clk 0:00:04]}  Kf4 {[%clk 0:00:06]} 70. Kh6 {[%clk 0:00:05]}  Kf5 {[%clk 0:00:06]} 71. Kh5 {[%clk 0:00:06]}  Rh3# {[%clk 0:00:06]} 0-1


[Site "https://www.chess.com"]

[Event "Titled Tuesday Blitz May 10 Early 2022"]
[White "Hambleton, Aman"]
[Black "Aldokhin, Ivan"]
[WhiteFideId "2606577"]
[BlackFideId "24115720"]
[WhiteElo "2552"]
[BlackElo "2231"]
[Result "1-0"]
[Round "10"]
[TimeControl "180+1"]
[Date "2022.05.10"]
[WhiteClock "0:00:12"]
[BlackClock "0:00:08"]

1. d4 {[%clk 0:03:00]}  Nf6 {[%clk 0:02:59]} 2. Bf4 {[%clk 0:02:56]}  g6 {[%clk 0:02:59]} 3. Nc3 {[%clk 0:02:55]}  c5 {[%clk 0:02:50]} 4. e3 {[%clk 0:02:36]}  Bg7 {[%clk 0:02:47]} 5. Nf3 {[%clk 0:02:11]}  O-O {[%clk 0:02:37]} 6. Be2 {[%clk 0:02:08]}  b6 {[%clk 0:02:37]} 7. O-O {[%clk 0:02:03]}  Bb7 {[%clk 0:02:38]} 8. h3 {[%clk 0:02:02]}  d6 {[%clk 0:02:38]} 9. Bh2 {[%clk 0:01:57]}  Nbd7 {[%clk 0:02:38]} 10. a4 {[%clk 0:01:57]}  a6 {[%clk 0:02:38]} 11. d5 {[%clk 0:01:50]}  b5 {[%clk 0:01:54]} 12. axb5 {[%clk 0:01:43]}  axb5 {[%clk 0:01:54]} 13. Rxa8 {[%clk 0:01:33]}  Qxa8 {[%clk 0:01:55]} 14. Bxb5 {[%clk 0:01:34]}  Ba6 {[%clk 0:01:32]} 15. e4 {[%clk 0:00:54]}  Nxe4 {[%clk 0:01:20]} 16. Bxd7 {[%clk 0:00:45]}  Nxc3 {[%clk 0:01:16]} 17. bxc3 {[%clk 0:00:41]}  Bxf1 {[%clk 0:01:16]} 18. Kxf1 {[%clk 0:00:32]}  Bxc3 {[%clk 0:01:15]} 19. g4 {[%clk 0:00:20]}  Qa1 {[%clk 0:00:53]} 20. Qxa1 {[%clk 0:00:16]}  Bxa1 {[%clk 0:00:53]} 21. c4 {[%clk 0:00:02]}  Rb8 {[%clk 0:00:53]} 22. Bb5 {[%clk 0:00:03]}  Ra8 {[%clk 0:00:53]} 23. Bf4 {[%clk 0:00:02]}  Ra3 {[%clk 0:00:49]} 24. Be3 {[%clk 0:00:02]}  Ra2 {[%clk 0:00:38]} 25. Kg2 {[%clk 0:00:02]}  Kg7 {[%clk 0:00:35]} 26. g5 {[%clk 0:00:02]}  Rc2 {[%clk 0:00:24]} 27. Kg3 {[%clk 0:00:03]}  Bb2 {[%clk 0:00:23]} 28. h4 {[%clk 0:00:03]}  Bc1 {[%clk 0:00:23]} 29. Bxc1 {[%clk 0:00:03]}  Rxc1 {[%clk 0:00:23]} 30. Nh2 {[%clk 0:00:03]}  Rc3+ {[%clk 0:00:23]} 31. f3 {[%clk 0:00:03]}  h6 {[%clk 0:00:23]} 32. Ng4 {[%clk 0:00:02]}  hxg5 {[%clk 0:00:23]} 33. hxg5 {[%clk 0:00:03]}  f6 {[%clk 0:00:21]} 34. Nf2 {[%clk 0:00:03]}  Rc1 {[%clk 0:00:14]} 35. Nh3 {[%clk 0:00:03]}  Rc2 {[%clk 0:00:11]} 36. Kg4 {[%clk 0:00:02]}  Rg2+ {[%clk 0:00:10]} 37. Kf4 {[%clk 0:00:03]}  Rh2 {[%clk 0:00:10]} 38. Kg3 {[%clk 0:00:03]}  Rb2 {[%clk 0:00:10]} 39. Nf2 {[%clk 0:00:02]}  Kf7 {[%clk 0:00:10]} 40. Ne4 {[%clk 0:00:02]}  Rb3 {[%clk 0:00:10]} 41. Kf4 {[%clk 0:00:02]}  f5 {[%clk 0:00:09]} 42. Nf2 {[%clk 0:00:02]}  Rb2 {[%clk 0:00:09]} 43. Kg3 {[%clk 0:00:02]}  Rd2 {[%clk 0:00:10]} 44. Nh3 {[%clk 0:00:03]}  Rd4 {[%clk 0:00:10]} 45. Nf4 {[%clk 0:00:03]}  Rd2 {[%clk 0:00:10]} 46. Bd7 {[%clk 0:00:02]}  Kg7 {[%clk 0:00:10]} 47. Ne6+ {[%clk 0:00:02]}  Kh7 {[%clk 0:00:09]} 48. Be8 {[%clk 0:00:02]}  Rc2 {[%clk 0:00:05]} 49. Nf8+ {[%clk 0:00:03]}  Kg7 {[%clk 0:00:06]} 50. Nxg6 {[%clk 0:00:03]}  Rxc4 {[%clk 0:00:05]} 51. Nxe7 {[%clk 0:00:03]}  f4+ {[%clk 0:00:04]} 52. Kg4 {[%clk 0:00:03]}  Rb4 {[%clk 0:00:05]} 53. Nf5+ {[%clk 0:00:03]}  Kf8 {[%clk 0:00:05]} 54. Bd7 {[%clk 0:00:03]}  c4 {[%clk 0:00:06]} 55. g6 {[%clk 0:00:03]}  Rb7 {[%clk 0:00:02]} 56. g7+ {[%clk 0:00:03]}  Kg8 {[%clk 0:00:02]} 57. Be6+ {[%clk 0:00:03]}  Rf7 {[%clk 0:00:02]} 58. Bxf7+ {[%clk 0:00:02]}  Kxf7 {[%clk 0:00:02]} 59. Kxf4 {[%clk 0:00:03]}  c3 {[%clk 0:00:03]} 60. Nd4 {[%clk 0:00:04]}  c2 {[%clk 0:00:03]} 61. Nxc2 {[%clk 0:00:04]}  Kxg7 {[%clk 0:00:04]} 62. Nd4 {[%clk 0:00:05]}  Kf7 {[%clk 0:00:05]} 63. Nb5 {[%clk 0:00:05]}  Ke7 {[%clk 0:00:05]} 64. Kf5 {[%clk 0:00:06]}  Kd7 {[%clk 0:00:06]} 65. Nxd6 {[%clk 0:00:07]}  Kxd6 {[%clk 0:00:06]} 66. f4 {[%clk 0:00:08]}  Kxd5 {[%clk 0:00:07]} 67. Kg6 {[%clk 0:00:09]}  Kd6 {[%clk 0:00:06]} 68. f5 {[%clk 0:00:10]}  Ke7 {[%clk 0:00:07]} 69. Kg7 {[%clk 0:00:10]}  Ke8 {[%clk 0:00:07]} 70. f6 {[%clk 0:00:11]}  Kd7 {[%clk 0:00:08]} 71. f7 {[%clk 0:00:12]} 1-0


[Site "https://www.chess.com"]

[Event "Titled Tuesday Blitz May 10 Early 2022"]
[White "Dronavalli, Harika"]
[Black "Raahul V S"]
[WhiteFideId "5015197"]
[BlackFideId "25035525"]
[WhiteElo "2382"]
[BlackElo "2185"]
[Result "1/2-1/2"]
[Round "10"]
[TimeControl "180+1"]
[Date "2022.05.11"]
[WhiteClock "0:00:23"]
[BlackClock "0:00:06"]

1. e4 {[%clk 0:03:00]}  e6 {[%clk 0:02:59]} 2. d4 {[%clk 0:02:58]}  d5 {[%clk 0:02:59]} 3. Nd2 {[%clk 0:02:57]}  c5 {[%clk 0:02:59]} 4. Ngf3 {[%clk 0:02:50]}  cxd4 {[%clk 0:02:59]} 5. exd5 {[%clk 0:02:50]}  Qxd5 {[%clk 0:02:59]} 6. Bc4 {[%clk 0:02:51]}  Qd7 {[%clk 0:03:00]} 7. O-O {[%clk 0:02:50]}  Nf6 {[%clk 0:02:57]} 8. Nb3 {[%clk 0:02:49]}  Qc7 {[%clk 0:02:55]} 9. Qe2 {[%clk 0:02:41]}  Nc6 {[%clk 0:02:51]} 10. Nbxd4 {[%clk 0:02:38]}  Nxd4 {[%clk 0:02:46]} 11. Nxd4 {[%clk 0:02:38]}  a6 {[%clk 0:02:46]} 12. Bg5 {[%clk 0:02:12]}  Bd6 {[%clk 0:02:34]} 13. h3 {[%clk 0:02:00]}  b5 {[%clk 0:02:12]} 14. Bd3 {[%clk 0:01:49]}  Nd5 {[%clk 0:02:05]} 15. c4 {[%clk 0:01:37]}  bxc4 {[%clk 0:01:53]} 16. Bxc4 {[%clk 0:01:38]}  Nf4 {[%clk 0:01:49]} 17. Bxf4 {[%clk 0:01:31]}  Bxf4 {[%clk 0:01:50]} 18. Bd3 {[%clk 0:01:10]}  Qe5 {[%clk 0:01:15]} 19. Be4 {[%clk 0:01:04]}  Rb8 {[%clk 0:01:08]} 20. Rad1 {[%clk 0:00:37]}  O-O {[%clk 0:00:55]} 21. g3 {[%clk 0:00:32]}  f5 {[%clk 0:00:40]} 22. Bf3 {[%clk 0:00:14]}  Qxe2 {[%clk 0:00:35]} 23. Bxe2 {[%clk 0:00:14]}  Bg5 {[%clk 0:00:25]} 24. Bc4 {[%clk 0:00:13]}  Rxb2 {[%clk 0:00:20]} 25. Nxe6 {[%clk 0:00:13]}  Bxe6 {[%clk 0:00:19]} 26. Bxe6+ {[%clk 0:00:14]}  Kh8 {[%clk 0:00:19]} 27. h4 {[%clk 0:00:12]}  Bf6 {[%clk 0:00:19]} 28. Rb1 {[%clk 0:00:11]}  Re2 {[%clk 0:00:17]} 29. Rfe1 {[%clk 0:00:10]}  Rxe1+ {[%clk 0:00:17]} 30. Rxe1 {[%clk 0:00:11]}  Re8 {[%clk 0:00:17]} 31. Kf1 {[%clk 0:00:12]}  f4 {[%clk 0:00:18]} 32. Bd7 {[%clk 0:00:10]}  Rxe1+ {[%clk 0:00:17]} 33. Kxe1 {[%clk 0:00:10]}  fxg3 {[%clk 0:00:18]} 34. fxg3 {[%clk 0:00:11]}  Kg8 {[%clk 0:00:17]} 35. Kf2 {[%clk 0:00:11]}  Kf8 {[%clk 0:00:17]} 36. h5 {[%clk 0:00:12]}  Ke7 {[%clk 0:00:17]} 37. Bc8 {[%clk 0:00:13]}  a5 {[%clk 0:00:17]} 38. Kf3 {[%clk 0:00:13]}  Kd6 {[%clk 0:00:17]} 39. g4 {[%clk 0:00:14]}  Kd5 {[%clk 0:00:15]} 40. Bb7+ {[%clk 0:00:13]}  Kd4 {[%clk 0:00:15]} 41. Bc8 {[%clk 0:00:14]}  Kd3 {[%clk 0:00:11]} 42. Kf4 {[%clk 0:00:14]}  h6 {[%clk 0:00:10]} 43. Kf5 {[%clk 0:00:14]}  Ke3 {[%clk 0:00:09]} 44. Be6 {[%clk 0:00:14]}  Kf3 {[%clk 0:00:09]} 45. Bf7 {[%clk 0:00:15]}  Kg3 {[%clk 0:00:08]} 46. a4 {[%clk 0:00:15]}  Kf3 {[%clk 0:00:08]} 47. Be8 {[%clk 0:00:16]}  Ke3 {[%clk 0:00:08]} 48. Bd7 {[%clk 0:00:16]}  Kd4 {[%clk 0:00:09]} 49. Kg6 {[%clk 0:00:17]}  Kc5 {[%clk 0:00:08]} 50. Bb5 {[%clk 0:00:17]}  Kd4 {[%clk 0:00:07]} 51. g5 {[%clk 0:00:17]}  Bxg5 {[%clk 0:00:06]} 52. Kxg7 {[%clk 0:00:18]}  Ke4 {[%clk 0:00:06]} 53. Kg6 {[%clk 0:00:18]}  Kf4 {[%clk 0:00:06]} 54. Be8 {[%clk 0:00:18]}  Kg3 {[%clk 0:00:06]} 55. Kf7 {[%clk 0:00:19]}  Kh4 {[%clk 0:00:06]} 56. Ke6 {[%clk 0:00:19]}  Bd2 {[%clk 0:00:07]} 57. Kd5 {[%clk 0:00:20]}  Kg5 {[%clk 0:00:07]} 58. Kc4 {[%clk 0:00:20]}  Bb4 {[%clk 0:00:07]} 59. Bg6 {[%clk 0:00:20]}  Be1 {[%clk 0:00:07]} 60. Kb5 {[%clk 0:00:21]}  Bb4 {[%clk 0:00:07]} 61. Kb6 {[%clk 0:00:22]}  Be1 {[%clk 0:00:07]} 62. Kb5 {[%clk 0:00:22]}  Bb4 {[%clk 0:00:06]} 63. Kc4 {[%clk 0:00:23]}  Be1 {[%clk 0:00:06]} 1/2-1/2


[Site "https://www.chess.com"]